bitfinex/quotes_BTCUSD_20210101
["timestamp","ask_amount","ask_price","bid_price","bid_amount"]
[1609510777071,0.122739,29472.0,29471.0,0.6486]
[1609510777280,0.81379251,29472.0,29471.0,0.6486]
[1609510778079,0.81379251,29472.0,29471.0,1.3267]
[1609510778922,0.44956651,29472.0,29471.0,1.3267]
[1609510779117,0.3290274,29475.0,29471.0,1.3267]
[1609510779315,0.2199564,29472.0,29471.0,1.3267]
[1609510780013,0.52922106,29476.0,29471.0,1.3267]
[1609510780308,1.25922106,29476.0,29471.0,1.3267]
[1609510780616,0.21995786,29472.0,29471.0,1.3267]
[1609510781115,0.54929531,29474.0,29471.0,1.3267]
[1609510781515,0.22000595,29472.0,29471.0,1.3267]
[1609510782114,0.54929422,29475.0,29471.0,1.3267]
[1609510782314,0.54929422,29475.0,29471.0,0.9056]
[1609510782713,0.32929118,29475.0,29471.0,0.9056]
[1609510783113,0.22000938,29474.0,29471.0,0.9056]
[1609510783314,0.32929118,29475.0,29471.0,0.9056]
[1609510783619,0.21989631,29473.0,29471.0,0.9056]
[1609510783814,0.32918175,29473.0,29471.0,0.9056]
[1609510785435,0.54908808,29473.0,29471.0,0.9056]
[1609510785634,0.32900855,29472.0,29471.0,0.9056]
[1609510786432,0.32903154,29473.0,29471.0,0.9056]
[1609510786834,0.21983107,29472.0,29471.0,0.9056]
[1609510787333,0.21983107,29472.0,29471.0,0.9053]
[1609510787536,0.54887028,29473.0,29471.0,0.9053]
[1609510787936,0.54868471,29472.0,29471.0,0.9053]
[1609510788337,0.145,29477.0,29471.0,0.9053]
[1609510788338,0.32895376,29473.0,29471.0,0.9053]
[1609510789032,0.32893383,29472.0,29471.0,0.9053]
[1609510792428,0.32893383,29472.0,29471.0,0.7641]
[1609510793426,0.32879736,29473.0,29471.0,0.7641]
[1609510793633,0.32879736,29473.0,29471.0,0.92284]
[1609510793832,0.21968682,29472.0,29471.0,0.92284]
[1609510794138,0.32879736,29473.0,29471.0,0.92284]
[1609510794537,0.32879736,29473.0,29472.0,5.32]
[1609510794749,0.21966127,29476.0,29473.0,5.67897016]
[1609510794939,0.21966127,29476.0,29474.0,0.07]
[1609510795240,0.15293887,29480.0,29475.0,5.28346812]
[1609510795435,0.15293887,29480.0,29476.0,0.10346812]
[1609510795642,0.019,29483.0,29478.0,4.4]
[1609510795849,0.019,29483.0,29479.0,0.76796812]
[1609510796039,0.019,29483.0,29479.0,1.26436812]
[1609510796348,0.019,29483.0,29480.0,0.03346812]
[1609510796546,0.019,29483.0,29479.0,1.2309]
[1609510796946,0.019,29483.0,29481.0,0.5083]
[1609510797145,0.93,29482.0,29481.0,0.5083]
[1609510797449,1.2,29482.0,29481.0,0.3657]
[1609510797752,1.564226,29482.0,29481.0,0.3657]
[1609510797953,1.564226,29482.0,29481.0,0.15925602]
[1609510798149,1.764226,29482.0,29481.0,0.15925602]
[1609510798448,1.564226,29482.0,29481.0,0.15925602]
[1609510798847,1.764226,29482.0,29481.0,0.15925602]
[1609510799145,1.759226,29482.0,29481.0,0.15925602]
[1609510799343,1.559226,29482.0,29481.0,0.15925602]
[1609510800847,1.559226,29482.0,29481.0,0.15425602]
[1609510801246,1.759226,29482.0,29481.0,0.15425602]
[1609510801468,1.559226,29482.0,29481.0,0.15425602]
[1609510801863,0.629226,29482.0,29481.0,0.15425602]
[1609510802268,1.559226,29482.0,29481.0,0.15425602]
[1609510802567,1.559226,29482.0,29481.0,0.01205602]
[1609510807360,1.55835356,29482.0,29481.0,0.01205602]
[1609510807561,1.65,29481.0,29480.0,0.54455602]
[1609510807762,0.599226,29481.0,29480.0,0.54455602]
[1609510807962,1.08592235,29481.0,29480.0,0.54455602]
[1609510808267,0.799226,29481.0,29480.0,0.54455602]
[1609510808663,0.599226,29481.0,29480.0,0.54455602]
[1609510809467,0.799226,29481.0,29480.0,0.54455602]
[1609510809665,1.119226,29481.0,29480.0,0.54455602]
[1609510809865,0.599226,29481.0,29480.0,0.54455602]
[1609510810070,0.799226,29481.0,29480.0,0.54455602]
[1609510810465,0.599226,29481.0,29480.0,0.54455602]
[1609510810879,0.81387742,29481.0,29480.0,0.54455602]
[1609510812780,0.81387742,29481.0,29480.0,0.40195602]
[1609510812979,1.33387742,29481.0,29480.0,0.40195602]
[1609510814184,2.26387742,29481.0,29480.0,0.40195602]
[1609510814583,1.33387742,29481.0,29480.0,0.40195602]
[1609510814784,1.43387742,29481.0,29480.0,0.40195602]
[1609510814984,1.63387742,29481.0,29480.0,0.40195602]
[1609510815190,1.53387742,29481.0,29480.0,0.40195602]
[1609510816384,1.33387742,29481.0,29480.0,0.40195602]
[1609510816807,1.63387742,29481.0,29480.0,0.40195602]
[1609510817007,1.43387742,29481.0,29480.0,0.40195602]
[1609510817905,1.43387742,29481.0,29480.0,0.25925602]
[1609510818405,1.43387742,29481.0,29480.0,0.05279296]
[1609510818811,1.40271742,29481.0,29480.0,0.05279296]
[1609510819006,1.60271742,29481.0,29480.0,0.05279296]
[1609510820507,2.53271742,29481.0,29480.0,0.05279296]
[1609510820712,2.50771742,29481.0,29480.0,0.05279296]
[1609510821110,3.25771742,29481.0,29480.0,0.05279296]
[1609510821497,2.50771742,29481.0,29480.0,0.05279296]
[1609510822296,3.50771742,29481.0,29480.0,0.05279296]
[1609510822694,3.70771742,29481.0,29480.0,0.05279296]
[1609510822903,0.30680302,29479.0,29473.0,1.01359296]
[1609510823098,0.52,29477.0,29473.0,1.01359296]
[1609510823312,0.52,29477.0,29472.0,0.7648]
[1609510823313,0.88640978,29476.0,29471.0,0.8473]
[1609510823511,0.895,29474.0,29471.0,0.8473]
[1609510823704,2.884226,29472.0,29464.0,0.2789]
[1609510824038,0.884226,29469.0,29464.0,0.2789]
[1609510824206,0.82680302,29468.0,29463.0,0.7265]
[1609510824406,1.50218378,29471.0,29463.0,0.7265]
[1609510824407,0.57,29471.0,29467.0,0.174988]
[1609510824618,0.52313129,29470.0,29468.0,0.27]
[1609510824803,0.52313129,29470.0,29469.0,3.704974]
[1609510825000,0.52313129,29470.0,29469.0,3.774974]
[1609510825504,0.21556914,29475.0,29469.0,0.174974]
[1609510825712,0.00218398,29478.0,29469.0,0.104974]
[1609510825713,0.21580257,29470.0,29469.0,0.104974]
[1609510825918,0.21580257,29470.0,29469.0,0.374974]
[1609510826120,0.21583018,29474.0,29469.0,0.374974]
[1609510826318,0.364229,29473.0,29469.0,0.2]
[1609510826523,0.21583018,29474.0,29468.0,0.2]
[1609510826722,0.364229,29473.0,29468.0,0.2]
[1609510826924,0.364229,29473.0,29466.0,1.0474]
[1609510827228,0.364229,29474.0,29470.0,0.6779]
[1609510827438,0.364229,29472.0,29470.0,0.6779]
[1609510827626,0.099911,29471.0,29470.0,0.6779]
[1609510827925,0.46414,29471.0,29470.0,0.5364]
[1609510828121,0.67997762,29471.0,29470.0,0.5364]
[1609510828522,0.58006662,29471.0,29470.0,0.5364]
[1609510829654,0.364229,29471.0,29470.0,0.5364]
[1609510829822,0.58040991,29471.0,29470.0,0.5364]
[1609510832935,0.58040991,29471.0,29470.0,0.3946]
[1609510834543,0.58040991,29471.0,29470.0,0.3756]
[1609510834945,0.58040991,29471.0,29470.0,1.1256]
[1609510835345,0.21618091,29471.0,29470.0,1.1256]
[1609510835550,0.21618091,29471.0,29470.0,1.23057]
[1609510835745,0.21618091,29471.0,29470.0,1.21557]
[1609510836569,0.364229,29475.0,29470.0,1.1106]
[1609510836964,0.21535647,29471.0,29470.0,1.215565]
[1609510837159,0.21535647,29471.0,29470.0,0.465565]
[1609510837359,0.21544999,29474.0,29470.0,0.465565]
[1609510837563,0.364229,29473.0,29470.0,0.3606]
[1609510837961,0.21541643,29472.0,29470.0,0.219]
[1609510839201,0.364229,29474.0,29470.0,0.219]
[1609510839402,0.21537941,29471.0,29470.0,0.219]
[1609510839603,0.21537941,29471.0,29470.0,0.323966]
[1609510840006,0.2153506,29473.0,29471.0,0.104964]
[1609510840200,0.2153506,29473.0,29471.0,0.089964]
[1609510840400,0.3426351,29480.0,29471.0,0.089964]
[1609510840605,0.3426351,29480.0,29470.0,0.219]
[1609510840606,0.21542135,29472.0,29470.0,0.219]
[1609510840802,0.21542135,29472.0,29471.0,1.089959]
[1609510841099,0.00218398,29478.0,29471.0,1.089959]
[1609510841502,0.364221,29477.0,29474.0,0.5085]
[1609510841704,0.57946481,29477.0,29475.0,0.1864]
[1609510842105,0.21526052,29476.0,29474.0,0.5085]
[1609510842298,0.364221,29475.0,29474.0,0.5085]
[1609510843103,0.364221,29475.0,29474.0,0.3607]
[1609510843104,0.57374096,29475.0,29474.0,0.3607]
[1609510845341,0.364221,29475.0,29474.0,0.3607]
[1609510845643,0.57367539,29475.0,29474.0,0.3607]
[1609510846142,0.364221,29475.0,29474.0,0.3607]
[1609510846349,0.57370657,29475.0,29474.0,0.3607]
[1609510846547,0.67361757,29475.0,29474.0,0.3607]
[1609510846851,0.57370657,29475.0,29474.0,0.3607]
[1609510848146,0.57370657,29475.0,29474.0,0.2193]
[1609510849082,0.56870657,29475.0,29474.0,0.2193]
[1609510849683,0.56870657,29475.0,29474.0,0.2143]
[1609510852495,0.56870657,29475.0,29473.0,0.65724422]
[1609510853096,0.56870657,29475.0,29474.0,0.3671]
[1609510853295,0.359221,29475.0,29474.0,0.3671]
[1609510853996,0.56871014,29475.0,29474.0,0.3671]
[1609510856132,0.20948914,29475.0,29474.0,0.3671]
[1609510856433,0.20948914,29475.0,29474.0,0.46205]
[1609510856826,0.20948914,29475.0,29474.0,1.81205]
[1609510857033,0.21000753,29480.0,29474.0,1.81205]
[1609510857237,0.20997292,29475.0,29474.0,1.7171]
[1609510857436,0.20997292,29475.0,29474.0,1.812045]
[1609510857836,0.3268583,29475.0,29474.0,3.112045]
[1609510858030,0.3268583,29475.0,29474.0,1.957045]
[1609510858232,0.3268583,29475.0,29474.0,1.669745]
[1609510859846,0.3268583,29475.0,29474.0,2.319745]
[1609510860252,0.3268583,29475.0,29474.0,1.669745]
[1609510862651,0.3268583,29475.0,29474.0,2.319745]
[1609510862853,0.3268583,29475.0,29474.0,1.669745]
[1609510863161,0.32627506,29476.0,29475.0,1.694945]
[1609510863354,0.32627506,29476.0,29475.0,1.552745]
[1609510864359,0.32627506,29476.0,29475.0,1.887745]
[1609510864757,0.32645295,29477.0,29475.0,1.887745]
[1609510866484,0.32633091,29478.0,29475.0,1.887745]
[1609510866733,0.32633091,29478.0,29475.0,1.552745]
[1609510867038,0.20969028,29476.0,29475.0,1.552745]
[1609510867337,0.20972427,29477.0,29475.0,1.552745]
[1609510867534,0.3262973,29479.0,29476.0,4.6995]
[1609510867737,0.3262973,29479.0,29476.0,5.31211]
[1609510868339,0.32656542,29480.0,29477.0,0.355]
[1609510868940,0.32652562,29481.0,29477.0,0.355]
[1609510869369,0.32658157,29482.0,29477.0,0.355]
[1609510870570,0.32658157,29482.0,29477.0,0.425]
[1609510870969,0.32658157,29482.0,29477.0,0.75976746]
[1609510871474,0.53623229,29483.0,29477.0,0.68976746]
[1609510871973,0.32650894,29482.0,29477.0,0.68976746]
[1609510872571,0.53602452,29483.0,29477.0,0.355]
[1609510872876,0.53602452,29483.0,29480.0,0.6777]
[1609510873071,0.53602452,29483.0,29481.0,0.2]
[1609510873275,0.2097117,29483.0,29480.0,0.9954]
[1609510873773,0.1947117,29483.0,29480.0,0.9954]
[1609510873970,0.1947117,29483.0,29481.0,0.6215]
[1609510874376,0.19558873,29482.0,29481.0,0.6215]
[1609510875094,0.19558873,29482.0,29481.0,1.4167]
[1609510875294,0.19556103,29483.0,29481.0,1.4167]
[1609510875489,0.19556103,29483.0,29482.0,2.455]
[1609510875693,0.19556103,29483.0,29482.0,0.155]
[1609510876797,0.29866824,29483.0,29482.0,0.155]
[1609510876999,0.29866824,29483.0,29482.0,0.6632]
[1609510878099,0.19556103,29483.0,29482.0,0.6632]
[1609510878500,0.19556103,29483.0,29482.0,1.6694]
[1609510880435,0.19556103,29483.0,29482.0,3.4194]
[1609510880937,0.18056103,29483.0,29482.0,3.4894]
[1609510881341,0.85593503,29484.0,29483.0,3.2]
[1609510881542,0.85593503,29484.0,29483.0,3.27]
[1609510881769,0.17853503,29484.0,29483.0,5.32]
[1609510881965,0.32616886,29487.0,29484.0,5.32]
[1609510882159,0.32616886,29487.0,29485.0,0.07]
[1609510882368,0.32621468,29488.0,29485.0,0.07]
[1609510882672,0.32634207,29490.0,29485.0,0.07]
[1609510882861,0.32634207,29490.0,29486.0,0.6933]
[1609510883165,0.32634207,29490.0,29486.0,1.41516]
[1609510883364,0.32656922,29491.0,29487.0,0.07]
[1609510883563,0.32656922,29491.0,29488.0,0.7623]
[1609510883765,0.32656922,29491.0,29489.0,0.5081]
[1609510883961,0.3266139,29492.0,29489.0,0.5081]
[1609510885095,0.32651608,29493.0,29489.0,0.5081]
[1609510885396,1.0,29492.0,29489.0,0.5081]
[1609510885997,1.32651608,29493.0,29489.0,0.5081]
[1609510886198,1.52151212,29492.0,29489.0,0.5081]
[1609510886393,1.32651212,29492.0,29489.0,0.5081]
[1609510887194,0.32651212,29492.0,29489.0,0.5081]
[1609510887393,1.32651212,29492.0,29489.0,0.5081]
[1609510887595,0.099911,29490.0,29489.0,0.5081]
[1609510887797,0.32651212,29492.0,29489.0,0.5081]
[1609510887995,1.32651212,29492.0,29489.0,0.5081]
[1609510888395,0.32651212,29492.0,29489.0,0.5081]
[1609510888597,1.32651212,29492.0,29489.0,0.5037]
[1609510888797,1.0,29491.0,29489.0,0.5037]
[1609510888999,0.345,29490.0,29489.0,0.5037]
[1609510889495,0.345,29490.0,29489.0,1.8037]
[1609510889695,0.32651212,29492.0,29489.0,1.8037]
[1609510890148,1.32651212,29492.0,29489.0,1.8037]
[1609510890745,0.32651212,29492.0,29489.0,1.8037]
[1609510891654,0.32651212,29492.0,29489.0,0.5037]
[1609510891655,1.464132,29491.0,29489.0,0.5037]
[1609510891949,1.464132,29491.0,29489.0,0.29729265]
[1609510891950,3.759221,29490.0,29489.0,0.29729265]
[1609510892149,2.429221,29490.0,29489.0,0.29729265]
[1609510893868,2.734221,29490.0,29489.0,0.14859265]
[1609510894071,2.654221,29490.0,29489.0,0.14859265]
[1609510894669,2.454221,29490.0,29489.0,0.14859265]
[1609510894869,0.934221,29490.0,29489.0,0.14859265]
[1609510895069,1.454221,29490.0,29489.0,0.14859265]
[1609510895276,0.934221,29490.0,29489.0,0.14859265]
[1609510895581,1.654221,29490.0,29489.0,0.14859265]
[1609510895881,0.934221,29490.0,29489.0,0.14859265]
[1609510896069,0.629221,29490.0,29489.0,0.14859265]
[1609510896268,0.829221,29490.0,29489.0,0.14859265]
[1609510896697,1.00956885,29490.0,29489.0,0.14859265]
[1609510896900,2.00956885,29490.0,29489.0,0.14859265]
[1609510897099,2.14956885,29490.0,29489.0,0.14859265]
[1609510897298,1.94956885,29490.0,29489.0,0.14859265]
[1609510897495,2.46956885,29490.0,29489.0,0.14859265]
[1609510897699,2.66956885,29490.0,29489.0,0.14859265]
[1609510898100,2.46956885,29490.0,29489.0,0.14859265]
[1609510898497,1.66956885,29490.0,29489.0,0.14859265]
[1609510898899,1.66956885,29490.0,29489.0,0.00729265]
[1609510899336,1.46956885,29490.0,29489.0,0.00729265]
[1609510899533,2.15388625,29490.0,29489.0,0.00729265]
[1609510899733,2.35388625,29490.0,29489.0,0.00729265]
[1609510900236,2.15388625,29490.0,29489.0,0.00729265]
[1609510901135,1.63388625,29490.0,29489.0,0.00729265]
[1609510901533,2.15388625,29490.0,29489.0,0.00729265]
[1609510903139,1.63388625,29490.0,29489.0,0.00729265]
[1609510903334,2.15388625,29490.0,29489.0,0.00729265]
[1609510903539,1.63388625,29490.0,29489.0,0.00729265]
[1609510903941,1.63388625,29490.0,29488.0,0.62829265]
[1609510904141,0.245,29489.0,29488.0,0.62829265]
[1609510904545,0.73638032,29489.0,29488.0,0.62829265]
[1609510906884,0.69738032,29489.0,29488.0,0.62829265]
[1609510908915,0.69738032,29489.0,29488.0,0.48729265]
[1609510909315,0.1804939,29489.0,29488.0,0.48729265]
[1609510911217,0.1804939,29489.0,29486.0,0.6775]
[1609510911426,0.464132,29488.0,29486.0,0.6775]
[1609510911938,0.69013771,29488.0,29486.0,0.6775]
[1609510912142,0.74140273,29487.0,29486.0,0.6775]
[1609510912452,1.10562373,29487.0,29486.0,0.6775]
[1609510913937,1.10562373,29487.0,29486.0,0.536]
[1609510916277,1.62562373,29487.0,29486.0,0.536]
[1609510916474,1.70562373,29487.0,29486.0,0.536]
[1609510917376,1.89562373,29487.0,29486.0,0.536]
[1609510917580,2.09562373,29487.0,29486.0,0.536]
[1609510917776,1.89562373,29487.0,29486.0,0.536]
[1609510918178,1.49562373,29487.0,29486.0,0.536]
[1609510918475,1.16977666,29487.0,29486.0,0.536]
[1609510918673,1.68977666,29487.0,29486.0,0.536]
[1609510918879,0.96977666,29487.0,29486.0,0.536]
[1609510919076,1.48977666,29487.0,29486.0,0.3939]
[1609510919277,1.56977666,29487.0,29486.0,0.3939]
[1609510919477,1.21931666,29487.0,29486.0,0.3939]
[1609510919683,1.13931666,29487.0,29486.0,0.3939]
[1609510920405,0.77977666,29487.0,29486.0,0.3939]
[1609510921411,1.10430789,29487.0,29486.0,0.3939]
[1609510921708,1.10430789,29487.0,29486.0,0.3889]
[1609510921907,1.10430789,29487.0,29486.0,0.38534595]
[1609510922306,0.86930789,29487.0,29486.0,0.38534595]
[1609510922503,0.50508689,29487.0,29486.0,0.38534595]
[1609510922709,0.18055566,29487.0,29486.0,0.38534595]
[1609510922908,0.50472493,29487.0,29486.0,0.38534595]
[1609510923108,0.86894593,29487.0,29486.0,0.38534595]
[1609510923314,0.68239027,29487.0,29486.0,0.38534595]
[1609510923808,0.86185072,29487.0,29486.0,0.38534595]
[1609510924010,0.86185072,29487.0,29486.0,0.24384595]
[1609510924906,0.49762972,29487.0,29486.0,0.24384595]
[1609510925106,0.49762972,29487.0,29486.0,0.94384595]
[1609510925730,0.31816927,29487.0,29486.0,0.24384595]
[1609510929160,0.31816927,29487.0,29486.0,0.10154595]
[1609510929397,0.29364127,29487.0,29486.0,0.10154595]
[1609510930097,0.65786227,29487.0,29486.0,0.10154595]
[1609510930694,0.364221,29487.0,29486.0,0.10154595]
[1609510931295,0.464132,29487.0,29486.0,0.10154595]
[1609510931499,0.364221,29487.0,29486.0,0.10154595]
[1609510931697,0.54365208,29487.0,29486.0,0.10154595]
[1609510934501,0.54365208,29487.0,29486.0,0.6775]
[1609510936823,0.17943108,29487.0,29486.0,0.6775]
[1609510937628,0.17931999,29488.0,29486.0,0.6775]
[1609510938233,0.33431999,29488.0,29486.0,0.6775]
[1609510938629,0.33431999,29488.0,29487.0,1.2288]
[1609510939126,0.33431999,29488.0,29487.0,1.3979]
[1609510939425,0.17931999,29488.0,29487.0,1.3979]
[1609510939622,0.17931999,29488.0,29487.0,0.5043]
[1609510939831,0.17888665,29489.0,29487.0,0.5043]
[1609510940027,0.17888634,29488.0,29487.0,0.5043]
[1609510940226,0.17888634,29488.0,29487.0,0.3352]
[1609510940429,0.17888587,29489.0,29487.0,0.3352]
[1609510941660,0.17888587,29489.0,29487.0,1.0128]
[1609510944636,0.17888587,29489.0,29487.0,0.8698]
[1609510945541,0.17888587,29489.0,29487.0,0.8648]
[1609510946141,0.364221,29488.0,29487.0,0.8648]
[1609510946343,0.544221,29488.0,29487.0,0.8648]
[1609510946539,0.18,29488.0,29487.0,0.8648]
[1609510946945,0.35659702,29488.0,29487.0,0.8648]
[1609510949742,0.35659702,29488.0,29487.0,0.7228]
[1609510951464,0.35659702,29488.0,29487.0,0.87736]
[1609510953263,0.35659702,29488.0,29487.0,0.83216]
[1609510953468,0.35659702,29488.0,29487.0,0.6776]
[1609510954765,0.35659702,29488.0,29487.0,0.5361]
[1609510954963,0.3354348,29488.0,29487.0,0.5361]
[1609510957733,0.69419854,29488.0,29487.0,0.5361]
[1609510959228,0.32997754,29488.0,29487.0,0.5361]
[1609510960065,0.42988854,29488.0,29487.0,0.3856]
[1609510960266,0.32997754,29488.0,29487.0,0.3856]
[1609510961263,0.17366811,29488.0,29487.0,0.3856]
[1609510961465,0.32366811,29488.0,29487.0,0.3856]
[1609510961668,0.15,29488.0,29487.0,0.3856]
[1609510962068,0.33025612,29488.0,29487.0,0.3856]
[1609510964770,0.33025612,29488.0,29487.0,0.3706]
[1609510965009,0.33025612,29488.0,29487.0,0.2284]
[1609510967420,0.69447712,29488.0,29487.0,0.2284]
[1609510969346,0.33025612,29488.0,29487.0,0.2284]
[1609510969550,0.3215476,29488.0,29487.0,0.2284]
[1609510970148,0.3215476,29488.0,29487.0,0.0865]
[1609510972869,0.3215476,29488.0,29487.0,0.0555]
[1609510975112,0.3215476,29488.0,29487.0,0.6776]
[1609510979014,0.30138794,29488.0,29487.0,0.6776]
[1609510980332,0.30138794,29488.0,29487.0,0.5342]
[1609510981332,0.18025612,29488.0,29487.0,0.5342]
[1609510981935,0.18053871,29489.0,29487.0,0.5342]
[1609510985335,0.18053871,29489.0,29487.0,0.3912]
[1609510988335,0.155,29488.0,29487.0,0.3912]
[1609510988734,0.33541592,29488.0,29487.0,0.3912]
[1609510989470,0.155,29488.0,29487.0,0.3912]
[1609510990069,0.33043869,29488.0,29487.0,0.3912]
[1609510990266,0.33043869,29488.0,29487.0,0.249]
[1609510993175,0.33043869,29488.0,29487.0,0.949]
[1609510993374,0.17543869,29488.0,29487.0,0.949]
[1609510993784,0.17692562,29489.0,29487.0,1.149]
[1609510993976,0.17692562,29489.0,29487.0,0.949]
[1609510994180,0.17693703,29488.0,29487.0,0.949]
[1609510994483,0.6843174,29490.0,29487.0,1.424]
[1609510994776,0.6843174,29490.0,29487.0,1.224]
[1609510995189,0.6843174,29490.0,29487.0,0.524]
[1609510995490,0.175927,29489.0,29487.0,0.1078]
[1609510995692,0.175927,29489.0,29487.0,0.6776]
[1609510996194,0.29651367,29489.0,29487.0,0.6776]
[1609510997497,0.175927,29489.0,29487.0,0.6776]
[1609510997689,0.170927,29489.0,29487.0,0.6776]
[1609510997888,0.170927,29489.0,29488.0,0.875]
[1609510998092,0.6843174,29490.0,29488.0,0.175]
[1609510998389,0.6843174,29490.0,29487.0,0.79845]
[1609510998790,0.17029619,29489.0,29487.0,0.79845]
[1609510999793,0.27029619,29489.0,29487.0,0.79845]
[1609511001022,0.17031968,29488.0,29487.0,0.64005]
[1609511002283,0.17031968,29488.0,29487.0,0.84005]
[1609511002482,0.17031968,29488.0,29487.0,1.11505]
[1609511003184,0.120442,29488.0,29487.0,5.06505]
[1609511003686,0.120442,29488.0,29487.0,5.83105]
[1609511003882,0.2921972,29488.0,29487.0,5.83105]
[1609511004389,0.39217613,29489.0,29487.0,5.98614]
[1609511004620,0.1,29489.0,29488.0,4.475]
[1609511005415,0.27174441,29489.0,29488.0,4.475]
[1609511005618,0.80479661,29490.0,29489.0,4.55]
[1609511005823,0.6843174,29490.0,29489.0,3.675]
[1609511006416,0.6843174,29490.0,29489.0,3.475]
[1609511006616,0.6843174,29490.0,29489.0,3.675]
[1609511007519,0.6843174,29490.0,29489.0,3.475]
[1609511008518,0.6843174,29490.0,29489.0,3.675]
[1609511008928,0.0071174,29490.0,29489.0,5.725]
[1609511009132,0.0008,29496.0,29490.0,5.25]
[1609511009332,0.0008,29496.0,29491.0,0.275]
[1609511009529,0.0008,29496.0,29492.0,0.08448921]
[1609511009728,0.08058766,29494.0,29492.0,0.08448921]
[1609511009927,0.0008,29496.0,29494.0,4.8]
[1609511010164,0.00035004,29496.0,29495.0,6.93337616]
[1609511010368,0.00035004,29496.0,29495.0,6.96684428]
[1609511011365,0.00035004,29496.0,29495.0,6.93337616]
[1609511012869,0.00035004,29496.0,29495.0,2.63337616]
[1609511013074,0.00035004,29496.0,29495.0,2.3259]
[1609511013888,0.00035004,29496.0,29495.0,2.50831]
[1609511014088,0.00035004,29496.0,29495.0,3.40831]
[1609511015088,0.00035004,29496.0,29495.0,2.50831]
[1609511015989,0.04072145,29496.0,29495.0,2.50831]
[1609511017903,0.04072145,29496.0,29495.0,3.70831]
[1609511018106,0.04072145,29496.0,29495.0,2.54177812]
[1609511018312,0.0002,29499.0,29497.0,5.25]
[1609511018618,0.0006,29506.0,29498.0,0.66449554]
[1609511018811,0.00092642,29499.0,29498.0,0.275]
[1609511019021,0.00037129,29508.0,29504.0,0.5078]
[1609511019215,0.31994318,29509.0,29504.0,0.67931]
[1609511019414,0.00097129,29509.0,29505.0,1.3152]
[1609511019647,0.00097129,29509.0,29506.0,0.275]
[1609511019839,0.00097129,29509.0,29506.0,0.30754263]
[1609511020040,0.00097129,29509.0,29507.0,0.03254263]
[1609511021044,0.1743115,29508.0,29506.0,0.30754263]
[1609511021247,0.17468279,29508.0,29506.0,1.4372]
[1609511021441,0.17468279,29508.0,29507.0,0.275]
[1609511021640,0.00037129,29508.0,29507.0,0.275]
[1609511021941,0.00606242,29508.0,29507.0,0.275]
[1609511022351,1.00606242,29508.0,29507.0,0.275]
[1609511022653,1.77597342,29508.0,29506.0,0.677]
[1609511022844,2.364221,29507.0,29506.0,0.677]
[1609511023047,2.564221,29507.0,29506.0,0.677]
[1609511023243,3.174221,29507.0,29506.0,0.677]
[1609511023643,3.18028317,29507.0,29506.0,0.677]
[1609511023837,3.174221,29507.0,29506.0,0.677]
[1609511024042,1.18028293,29507.0,29506.0,0.677]
[1609511024250,0.564221,29507.0,29506.0,0.677]
[1609511024443,0.20404177,29507.0,29506.0,0.677]
[1609511025047,0.57028328,29507.0,29506.0,0.677]
[1609511025763,0.57028328,29507.0,29506.0,0.32995141]
[1609511025965,0.20606228,29507.0,29506.0,0.32995141]
[1609511026163,1.57028328,29507.0,29506.0,0.32995141]
[1609511026468,0.814221,29507.0,29506.0,0.32995141]
[1609511026667,1.2,29507.0,29506.0,0.32995141]
[1609511026865,0.30028229,29508.0,29506.0,0.32995141]
[1609511027367,0.00607703,29507.0,29506.0,0.32995141]
[1609511027560,0.20607703,29507.0,29506.0,0.32995141]
[1609511027961,0.20635932,29508.0,29506.0,0.32995141]
[1609511029864,0.10644832,29508.0,29506.0,0.32995141]
[1609511030066,0.00037129,29508.0,29506.0,0.32995141]
[1609511030265,0.00097129,29509.0,29506.0,0.32995141]
[1609511030802,0.17588128,29507.0,29506.0,0.32995141]
[1609511031195,0.17741135,29508.0,29506.0,0.32995141]
[1609511031395,0.15741135,29508.0,29506.0,0.32995141]
[1609511031701,0.17646865,29507.0,29506.0,0.32995141]
[1609511032154,0.17646865,29507.0,29506.0,0.54495141]
[1609511032455,0.17654915,29508.0,29506.0,0.54495141]
[1609511032859,0.17654915,29508.0,29506.0,0.87007141]
[1609511033455,0.15849079,29508.0,29506.0,0.65507141]
[1609511033651,0.1761154,29507.0,29506.0,0.65507141]
[1609511034153,0.17630078,29508.0,29506.0,0.65507141]
[1609511034806,0.17666416,29508.0,29506.0,0.65507141]
[1609511036609,0.17666416,29508.0,29506.0,0.64060141]
[1609511037714,0.17666416,29508.0,29506.0,0.71740141]
[1609511038738,1.25666416,29508.0,29506.0,0.71740141]
[1609511038945,0.564221,29507.0,29506.0,0.71740141]
[1609511039243,0.564221,29507.0,29506.0,0.31740141]
[1609511039438,0.67029803,29507.0,29506.0,0.31740141]
[1609511039644,0.94752947,29507.0,29506.0,0.31740141]
[1609511040150,1.54752947,29507.0,29506.0,0.31740141]
[1609511040452,2.72752947,29507.0,29506.0,0.31740141]
[1609511041344,1.72752947,29507.0,29501.0,1.3249]
[1609511041551,0.20630862,29504.0,29498.0,0.4592]
[1609511041753,0.65020903,29503.0,29501.0,0.6773]
[1609511042145,0.544132,29503.0,29501.0,0.6773]
[1609511042456,0.64829251,29502.0,29500.0,0.6773]
[1609511042650,2.47029803,29501.0,29500.0,0.6773]
[1609511042846,0.89029803,29501.0,29500.0,0.6773]
[1609511043049,0.55029803,29501.0,29500.0,0.6773]
[1609511043450,0.72814653,29501.0,29500.0,0.77788609]
[1609511043646,0.72814653,29501.0,29500.0,0.6773]
[1609511044091,0.36392553,29501.0,29500.0,0.6773]
[1609511044291,0.2578485,29501.0,29500.0,0.6773]
[1609511044998,1.72814653,29501.0,29500.0,0.6773]
[1609511045200,1.72814653,29501.0,29493.0,0.6933]
[1609511045201,2.26492653,29501.0,29493.0,0.6933]
[1609511045398,2.70631761,29500.0,29493.0,1.1511]
[1609511045603,0.47029803,29496.0,29485.0,1.6502]
[1609511045795,1.41538259,29495.0,29485.0,0.9108]
[1609511045996,0.41288005,29493.0,29485.0,1.3829]
[1609511046200,1.67102402,29492.0,29485.0,1.1121]
[1609511046393,0.30680302,29490.0,29485.0,1.1121]
[1609511046604,0.30680302,29488.0,29485.0,1.6203]